bitfinex-derivatives/quotes_BNBF0:USTF0_20250329
["timestamp","ask_amount","ask_price","bid_price","bid_amount"]
[1743241638456,0.91069824,605.37,604.85,0.27148708]
[1743241638652,0.91188161,605.36,604.85,0.27148708]
[1743241638851,3.48207342,605.38,604.97,1.23730318]
[1743241639057,3.48207342,605.38,604.98,0.27148708]
[1743241639258,3.73364452,605.37,604.98,0.27148708]
[1743241639453,2.82142329,605.37,604.98,0.27148708]
[1743241639658,2.82142329,605.37,604.99,0.33058397]
[1743241639856,2.82142329,605.37,605.0,0.27148708]
[1743241640055,1.0851628,605.36,605.0,0.27148708]
[1743241640453,1.0851628,605.36,605.01,0.33057304]
[1743241640760,1.0851628,605.35,605.02,0.27148708]
[1743241640961,1.0851628,605.35,605.05,1.23730318]
[1743241641259,1.0851628,605.35,605.06,0.60203281]
[1743241641462,1.60260518,605.64,605.07,0.60202734]
[1743241641759,6.31964531,605.63,605.08,0.27148708]
[1743241642059,7.92225049,605.62,605.08,0.60202188]
[1743241642358,1.61278653,605.6,605.09,0.60201642]
[1743241642559,1.60260518,605.57,605.1,0.60201096]
[1743241642753,6.32104045,605.56,605.11,0.60200549]
[1743241642953,0.96616184,605.54,605.12,0.60200003]
[1743241643157,1.60260518,605.48,605.13,0.27148708]
[1743241643358,6.32104045,605.47,605.13,0.27148708]
[1743241643560,6.32104045,605.46,605.13,0.27148708]
[1743241643754,3.70201468,605.45,605.13,0.27148708]
[1743241643956,3.70201468,605.45,605.12,0.33051295]
[1743241643957,3.70201468,605.44,605.14,0.33050203]
[1743241644161,3.70201468,605.43,605.15,0.27141323]
[1743241644355,3.70551613,605.42,605.15,0.27141323]
[1743241644561,1.61278653,605.66,605.15,0.27141323]
[1743241644562,3.70551613,605.41,605.15,0.27141323]
[1743241644762,3.48859275,605.43,605.15,0.27141323]
[1743241644763,3.70551613,605.4,605.15,0.27141323]
[1743241644955,0.91470077,605.39,605.15,0.27141323]
[1743241645263,3.74283013,605.38,605.15,0.27141323]
[1743241645461,0.91470077,605.37,605.15,0.27141323]
[1743241645659,0.91470077,605.36,605.15,0.27141323]
[1743241645858,0.91470077,605.35,605.15,0.27141323]
[1743241646162,2.82812936,605.36,605.15,0.27141323]
[1743241646359,0.91596265,605.35,605.15,0.27141323]
[1743241646560,0.91596265,605.34,605.15,0.27141323]
[1743241646759,0.91596265,605.33,605.15,0.27141323]
[1743241647057,1.08774206,605.34,605.15,0.27141323]
[1743241647258,1.08774206,605.34,605.14,0.33050203]
[1743241647460,1.08774206,605.32,605.15,0.27142881]
[1743241647856,1.08774206,605.33,605.15,0.27142881]
[1743241648662,1.08774206,605.32,605.15,0.27142881]
[1743241648863,1.08774206,605.32,605.14,0.33050203]
[1743241649160,1.08774206,605.32,605.15,0.2714035]
[1743241649361,1.60260518,605.59,605.15,0.2714035]
[1743241649659,6.35144251,605.58,605.15,0.2714035]
[1743241649863,6.35144251,605.57,605.15,0.2714035]
[1743241650064,6.35144251,605.56,605.15,0.2714035]
[1743241650357,6.35369553,605.55,605.15,0.2714035]
[1743241650559,6.35369553,605.54,605.15,0.2714035]
[1743241650764,6.35369553,605.53,605.14,0.33050203]
[1743241650965,1.60260518,605.48,605.15,0.27146943]
[1743241651157,1.60260518,605.48,605.14,0.33050203]
[1743241651158,5.85834309,605.47,605.14,0.33050203]
[1743241651361,5.85834309,605.46,605.15,0.27146585]
[1743241651556,5.85834309,605.45,605.15,0.27146585]
[1743241651763,3.72258509,605.44,605.15,0.27146585]
[1743241652063,3.72258509,605.43,605.15,0.27146585]
[1743241652264,3.72369206,605.42,605.15,0.27146585]
[1743241652464,3.72369206,605.41,605.15,0.27146585]
[1743241652661,3.72369206,605.4,605.15,0.27146585]
[1743241652867,3.72369206,605.39,605.15,0.27146585]
[1743241653066,3.72369206,605.38,605.15,0.27146585]
[1743241653264,2.25431585,605.37,605.15,0.27146585]
[1743241653570,2.25431585,605.36,605.15,0.27146585]
[1743241653869,0.91836013,605.35,605.15,0.27146585]
[1743241654069,0.92041,605.34,605.15,0.27146585]
[1743241654269,1.09373317,605.35,605.16,0.271468]
[1743241654471,0.92038756,605.34,605.15,0.271468]
[1743241654665,0.92038756,605.34,605.14,0.33050203]
[1743241654666,1.09373317,605.34,605.16,0.271468]
[1743241654976,1.09373317,605.34,605.14,0.33050203]
[1743241654977,1.09373317,605.34,605.17,0.271468]
[1743241655171,1.09373317,605.34,605.18,0.271468]
[1743241655370,1.09373317,605.33,605.19,0.271468]
[1743241655671,1.09373317,605.33,605.2,0.271468]
[1743241655864,1.09373317,605.33,605.21,0.271468]
[1743241656069,0.97477014,605.64,605.22,0.271468]
[1743241656070,1.09373317,605.32,605.22,0.271468]
[1743241656269,1.09373317,605.32,605.15,0.271468]
[1743241656471,1.09373317,605.32,605.16,0.271468]
[1743241656669,1.09373317,605.31,605.17,0.271468]
[1743241656869,1.09373317,605.31,605.18,0.271468]
[1743241657070,1.09373317,605.31,605.15,0.271468]
[1743241657272,1.60260518,605.59,605.16,0.271468]
[1743241657574,1.60260518,605.59,605.14,0.33050203]
[1743241657575,6.3704425,605.58,605.17,0.271468]
[1743241657772,6.3704425,605.57,605.15,0.271468]
[1743241657967,7.34521264,605.56,605.15,0.271468]
[1743241658165,0.97477014,605.55,605.15,0.271468]
[1743241658370,6.37154604,605.54,605.15,0.271468]
[1743241658566,6.37154604,605.53,605.15,0.271468]
[1743241658772,6.37154604,605.52,605.15,0.271468]
[1743241658966,6.37154604,605.51,605.15,0.271468]
[1743241659265,6.37154604,605.5,605.15,0.271468]
[1743241659469,6.37154604,605.49,605.15,0.271468]
[1743241659769,6.37154604,605.48,605.15,0.271468]
[1743241659973,6.37154604,605.47,605.15,0.271468]
[1743241660268,6.37142258,605.46,605.15,0.271468]
[1743241660473,6.37142258,605.45,605.15,0.271468]
[1743241660671,6.37142258,605.44,605.14,0.33050203]
[1743241660870,6.37142258,605.43,605.14,0.33050203]
[1743241661073,6.37142258,605.42,605.14,0.33050203]
[1743241661268,6.37142258,605.41,605.14,0.33050203]
[1743241661576,6.37142258,605.4,605.15,0.27147881]
[1743241661774,6.37142258,605.39,605.15,0.27147881]
[1743241661976,6.37142258,605.38,605.15,0.27147881]
[1743241662168,5.87542676,605.37,605.14,0.33050203]
[1743241662368,5.87542676,605.36,605.15,0.27147694]
[1743241662569,5.87542676,605.35,605.15,0.27147694]
[1743241662774,5.87542676,605.34,605.15,0.27147694]
[1743241662973,5.87542676,605.33,605.15,0.27147694]
[1743241663172,5.87518841,605.32,605.15,0.27147694]
[1743241663372,3.73412533,605.31,605.15,0.27147694]
[1743241663577,3.73412533,605.3,605.15,0.27147694]
[1743241663770,2.25977952,605.29,605.15,0.27147694]
[1743241664073,2.25937492,605.28,605.15,0.27147694]
[1743241664275,2.25937492,605.27,605.15,0.27147694]
[1743241664478,2.25937492,605.26,605.15,0.27147694]
[1743241664778,2.25937492,605.25,605.15,0.27147694]
[1743241664977,2.25937492,605.24,605.14,0.33050203]
[1743241665175,2.85305679,605.24,605.14,0.33050203]
[1743241665778,1.09732953,605.23,605.14,0.33050203]
[1743241666573,1.09732953,605.22,605.14,0.33050203]
[1743241667080,1.60260518,605.64,605.14,0.33050203]
[1743241667274,6.36895064,605.63,605.14,0.33050203]
[1743241667481,6.36895064,605.62,605.14,0.33050203]
[1743241667679,6.36895064,605.61,605.14,0.33050203]
[1743241667975,0.97590771,605.58,605.15,0.27144224]
[1743241668275,6.36910574,605.57,605.15,0.27144224]
[1743241668482,6.36910574,605.56,605.15,0.27144224]
[1743241668684,6.36910574,605.55,605.15,0.27144224]
[1743241668889,6.36910574,605.54,605.15,0.60193881]
[1743241669081,6.36910574,605.53,605.16,0.60193334]
[1743241669281,6.36910574,605.52,605.17,0.27144224]
[1743241669477,6.36910574,605.51,605.17,0.60192788]
[1743241669681,5.87369211,605.5,605.18,0.27144224]
[1743241669876,5.87369211,605.49,605.18,0.27144224]
[1743241670181,5.87369211,605.48,605.19,0.33047472]
[1743241670379,3.73292584,605.47,605.2,0.27144224]
[1743241670577,3.73292584,605.46,605.2,0.27144224]
[1743241670776,2.25911235,605.45,605.2,0.27144224]
[1743241670980,3.51258734,605.48,605.2,0.27144224]
[1743241670981,2.25911235,605.44,605.21,0.3304638]
[1743241671179,5.11114972,605.43,605.22,0.27144224]
[1743241671383,2.25911235,605.42,605.23,0.33045288]
[1743241671579,2.25911235,605.41,605.24,0.27144224]
[1743241671776,2.2602282,605.4,605.24,0.27144224]
[1743241672084,0.92113343,605.39,605.24,0.27144224]
[1743241672283,2.85203737,605.4,605.24,0.60188966]
[1743241672484,2.85203737,605.4,605.25,0.27144224]
[1743241672682,6.78333337,607.15,605.25,0.27144224]
[1743241672683,2.85203737,605.39,605.25,0.27144224]
[1743241673076,1.09693745,605.38,605.25,0.27144224]
[1743241673979,1.09693745,605.37,605.25,0.27144224]
[1743241674481,1.09693745,605.37,605.24,0.33044742]
[1743241674678,1.09693745,605.36,605.25,0.27139376]
[1743241675479,1.60260518,605.65,605.25,0.27139376]
[1743241675686,6.37375685,605.64,605.25,0.27139376]
[1743241675885,5.87844103,605.63,605.25,0.27139376]
[1743241676086,3.73588777,605.62,605.25,0.27139376]
[1743241676290,3.73588777,605.61,605.25,0.27139376]
[1743241676483,2.26093885,605.6,605.25,0.27139376]
[1743241676682,2.26093885,605.59,605.25,0.27139376]
[1743241676882,2.26093885,605.58,605.25,0.27139376]
[1743241677086,0.92184307,605.57,605.26,0.3304365]
[1743241677288,0.92184307,605.56,605.27,0.27139376]
[1743241677489,1.09811184,605.57,605.28,0.33042558]
[1743241677690,0.92162797,605.56,605.29,0.27139376]
[1743241677889,1.09811184,605.57,605.29,0.27139376]
[1743241678092,2.01973914,605.56,605.29,0.27139376]
[1743241678289,0.92155253,605.55,605.29,0.27139376]
[1743241678491,1.09811184,605.56,605.29,0.27139376]
[1743241679090,1.09811184,605.55,605.29,0.27139376]
[1743241680089,1.09811184,605.54,605.29,0.27139376]
[1743241680886,0.97624426,605.95,605.29,0.27139376]
[1743241680887,1.60260518,605.89,605.29,0.27139376]
[1743241681092,6.37146936,605.88,605.29,0.27139376]
[1743241681393,6.37146936,605.87,605.29,0.27139376]
[1743241681594,5.87553328,605.86,605.29,0.27139376]
[1743241681793,5.87553328,605.85,605.29,0.27139376]
[1743241682100,5.87553328,605.84,605.29,0.27139376]
[1743241682296,2.25982049,605.83,605.29,0.27139376]
[1743241682594,3.51208333,605.84,605.29,0.27139376]
[1743241683187,1.09690074,605.83,605.29,0.27139376]
[1743241683595,1.09690074,605.82,605.29,0.27139376]
[1743241684003,1.09690074,605.82,605.4,1.23730318]
[1743241684197,1.09690074,605.82,605.41,0.27139376]
[1743241684698,1.09690074,605.81,605.41,0.27139376]
[1743241685298,1.09690074,605.8,605.41,0.27139376]
[1743241685999,1.09690074,605.79,605.41,0.27139376]
[1743241686395,1.60260518,606.13,605.41,0.27139376]
[1743241686602,6.35010403,606.12,605.32,0.27139376]
[1743241686801,6.35010403,606.11,605.33,0.27139376]
[1743241687011,7.95270921,606.1,605.34,0.33039283]
[1743241687193,6.35010403,606.09,605.35,0.27139376]
[1743241687396,6.35010403,606.08,605.35,0.27139376]
[1743241687595,6.34814985,606.07,605.36,0.60157498]
[1743241687801,1.60260518,606.03,605.37,0.60156952]
[1743241687997,6.34814985,606.02,605.38,0.60156406]
[1743241688200,6.34814985,606.01,605.39,0.6015586]
[1743241688399,6.34814985,606.0,605.4,0.60155315]
[1743241688701,1.60260518,605.97,605.41,0.60154769]
[1743241688906,6.34814985,605.96,605.42,0.60154223]
[1743241689109,6.34814985,605.95,605.42,0.33034917]
[1743241689304,6.34814985,605.94,605.43,0.27122762]
[1743241689510,6.34563512,605.93,605.44,0.33033826]
[1743241689806,5.85067595,605.92,605.45,0.27122762]
[1743241690007,5.85067595,605.91,605.46,0.33032735]
[1743241690207,6.34579123,605.9,605.47,0.27122762]
[1743241690414,6.34579123,605.89,605.47,0.27122762]
[1743241690615,1.60260518,605.86,605.47,0.27122762]
[1743241690808,6.34579123,605.85,605.47,0.27122762]
[1743241691012,1.60260518,605.86,605.47,0.27122762]
[1743241691013,6.34579123,605.84,605.47,0.27122762]
[1743241691307,6.34579123,605.83,605.47,0.27122762]
[1743241691502,6.34579123,605.82,605.47,0.27122762]
[1743241691702,6.34579123,605.81,605.47,0.27122762]
[1743241692007,5.85073563,605.8,605.47,0.27122762]
[1743241692208,5.85073563,605.79,605.47,0.27122762]
[1743241692401,5.85073563,605.78,605.46,0.33032735]
[1743241692602,5.85073563,605.77,605.47,0.27129355]
[1743241692807,6.34503295,605.76,605.47,0.27129355]
[1743241693003,5.8498577,605.75,605.46,0.33032735]
[1743241693209,4.38079486,605.74,605.46,0.33032735]
[1743241693408,6.34503295,605.73,605.47,0.27133103]
[1743241693610,4.87602678,605.72,605.47,0.27133103]
[1743241693907,6.34509423,605.71,605.47,0.27133103]
[1743241694107,3.50277039,605.77,605.46,0.33032735]
[1743241694108,5.8498577,605.7,605.46,0.33032735]
[1743241694309,5.8498577,605.69,605.46,0.33032735]
[1743241694510,6.34510102,605.68,605.46,0.33032735]
[1743241694812,6.34510102,605.67,605.46,0.33032735]
[1743241695009,6.34510102,605.66,605.46,0.33032735]
[1743241695209,6.34510102,605.65,605.46,0.33032735]
[1743241695410,5.8498577,605.64,605.46,0.33032735]
[1743241695712,6.34515955,605.63,605.46,0.33032735]
[1743241695905,9.35262809,605.62,605.46,0.33032735]
[1743241696109,5.8498577,605.61,605.46,0.33032735]
[1743241696309,5.8498577,605.6,605.46,0.33032735]
[1743241696513,3.71932282,605.59,605.46,0.33032735]
[1743241696705,3.71932282,605.58,605.46,0.33032735]
[1743241696903,3.71932282,605.57,605.46,0.33032735]
[1743241697108,3.71932282,605.56,605.46,0.33032735]
[1743241697410,3.71836618,605.55,605.46,0.33032735]
[1743241697717,9.35289943,605.54,605.46,0.33032735]
[1743241697911,5.85012904,605.53,605.46,0.33032735]
[1743241698110,5.85012904,605.52,605.46,0.33032735]
[1743241698312,5.85018701,605.51,605.46,0.33032735]
[1743241698509,1.60260518,605.63,605.46,0.33032735]
[1743241698510,6.34555559,605.5,605.46,0.33032735]
[1743241698714,6.34555559,605.49,605.46,0.33032735]
[1743241699013,5.85018701,605.48,605.46,0.33032735]
[1743241699314,5.85018701,605.47,605.46,0.33032735]
[1743241699514,6.34558479,605.47,605.46,0.33032735]
[1743241699715,5.85018701,605.47,605.46,0.33032735]
[1743241699915,9.35050696,605.47,605.13,0.28742396]
[1743241700117,5.84773657,605.46,605.14,0.27143502]
[1743241700313,5.84773657,605.45,604.9,1.23730318]
[1743241700512,5.84773657,605.44,605.12,0.28744533]
[1743241700720,9.34917292,605.43,605.13,0.27143502]
[1743241701022,3.71591574,605.42,605.14,0.27143502]
[1743241701217,3.71591574,605.41,604.91,0.27143502]
[1743241701417,3.71591574,605.4,604.92,0.27143502]
[1743241701719,3.71578731,605.39,605.12,0.28747857]
[1743241701919,3.71569574,605.38,605.13,0.27143502]
[1743241702115,0.91669392,605.37,605.14,0.27143502]
[1743241702319,0.91669392,605.36,604.94,0.27143502]
[1743241702512,0.91669392,605.35,604.95,0.27143502]
[1743241702713,2.84280921,605.35,604.95,0.27143502]
[1743241702922,2.84280921,605.35,604.96,0.27143502]
[1743241703116,2.84280921,605.35,604.94,0.27143502]
[1743241703415,1.09338816,605.34,604.95,0.27143502]
[1743241704115,1.09338816,605.33,604.95,0.27143502]
[1743241704921,1.09338816,605.32,604.95,0.27143502]
[1743241705117,1.09338816,605.32,604.96,0.33060037]
[1743241705315,1.09338816,605.32,604.97,0.27143502]
[1743241705619,1.09338816,605.31,604.98,0.33058944]
[1743241705821,1.09338816,605.31,604.99,0.27143502]
[1743241706016,1.09338816,605.31,605.0,0.33057851]
[1743241706215,1.60260518,605.61,605.01,0.27143502]
[1743241706415,6.33972223,605.6,605.02,0.33056758]
[1743241706619,6.33972223,605.59,605.03,0.27143502]
[1743241706817,6.33972223,605.58,605.04,0.33055665]
[1743241707020,1.60260518,605.61,605.05,0.27143502]
[1743241707021,9.82636187,605.57,605.05,0.27143502]
[1743241707221,6.33972223,605.56,605.05,0.27143502]
[1743241707423,6.33929737,605.55,605.06,0.33054573]
[1743241707621,6.33929737,605.54,605.07,0.27143502]
[1743241707819,6.33929737,605.53,605.07,0.27143502]
[1743241708024,6.33929737,605.52,605.07,0.27143502]
[1743241708217,6.33931128,605.51,605.06,0.33054573]
[1743241708426,6.33931128,605.5,605.06,0.33054573]
[1743241708619,5.84386541,605.49,605.06,0.33054573]
[1743241708819,5.84386541,605.48,605.06,0.33054573]
[1743241709019,5.84386541,605.47,605.06,0.33054573]
[1743241709221,5.84386541,605.46,605.06,0.33054573]
[1743241709421,5.84386541,605.45,605.06,0.33054573]
[1743241709724,4.20950446,605.44,605.07,0.27147736]
[1743241709924,4.20950446,605.43,605.07,0.27147736]
[1743241710121,6.33886166,605.42,605.07,0.27147736]
[1743241710318,3.71403403,605.41,605.07,0.27147736]
[1743241710522,6.33861525,605.4,605.06,0.33054573]
[1743241710818,6.33861525,605.39,605.06,0.33054573]
[1743241711031,6.33861525,605.38,605.06,0.33054573]
[1743241711223,2.82606369,605.42,605.06,0.33054573]
[1743241711224,5.84304553,605.37,605.06,0.33054573]
[1743241711426,6.33486089,605.36,605.06,0.33054573]
[1743241711725,5.83924209,605.35,605.06,0.33054573]
[1743241712025,5.83981536,605.34,605.06,0.33054573]
[1743241712228,5.83981536,605.33,605.06,0.33054573]
[1743241712524,5.83981536,605.32,605.06,0.33054573]
[1743241712725,5.83981536,605.31,605.06,0.33054573]
[1743241712919,5.83929699,605.3,605.06,0.33054573]
[1743241713124,6.3348865,605.29,605.06,0.33054573]
[1743241713421,6.3348865,605.28,605.06,0.33054573]
[1743241713726,6.3348865,605.27,605.06,0.33054573]
[1743241713925,3.48676218,605.28,605.06,0.33054573]
[1743241713926,6.3348865,605.26,605.06,0.33054573]
[1743241714118,6.3348865,605.25,605.06,0.33054573]
[1743241714320,6.3348865,605.24,605.06,0.33054573]
[1743241714519,5.83929699,605.23,605.06,0.33054573]
[1743241714721,5.83929699,605.22,605.06,0.33054573]
[1743241714924,5.83929699,605.21,605.06,0.33054573]
[1743241715220,5.83929699,605.2,605.06,0.33054573]
[1743241715424,5.83929699,605.19,605.06,0.33054573]
[1743241715721,3.71101052,605.18,605.06,0.33054573]
[1743241715933,3.71101052,605.17,605.06,0.33054573]
[1743241716120,2.24527818,605.16,605.06,0.33054573]
[1743241716325,3.48676218,605.2,605.06,0.33054573]
[1743241716326,2.24527818,605.15,605.06,0.33054573]
[1743241716520,2.24527818,605.14,605.06,0.33054573]
[1743241716721,2.24527818,605.13,605.06,0.33054573]
[1743241716923,2.24527818,605.12,605.06,0.33054573]
[1743241717121,2.24527818,605.11,605.06,0.33054573]
[1743241717325,2.24527818,605.1,605.06,0.33054573]
[1743241717528,2.24527818,605.09,605.06,0.33054573]
[1743241717728,2.24394649,605.08,605.06,0.33054573]
[1743241717923,0.91513345,605.07,605.06,0.33054573]
[1743241718629,5.83221986,605.07,605.06,0.33054573]
[1743241718823,5.06974646,605.07,605.06,0.33054573]
[1743241719329,6.53352492,605.07,605.06,0.33054573]
[1743241720026,9.32047453,605.07,605.06,0.33054573]
[1743241720225,9.81616409,605.07,605.06,0.33054573]
[1743241720629,9.81616409,605.07,604.78,0.28768176]
[1743241720830,6.32918706,605.06,604.79,0.27162779]
[1743241721026,3.70746123,605.05,604.79,0.27162779]
[1743241721238,0.91506045,605.04,604.8,0.27162779]
[1743241721429,0.91506045,605.03,604.78,0.28765917]
[1743241721631,0.91506045,605.02,604.79,0.27162779]
[1743241721829,0.91445723,605.01,604.79,0.27162779]
[1743241722026,2.82606369,605.04,604.79,0.27162779]
[1743241722236,1.08694757,605.0,604.79,0.27162779]
[1743241722729,1.08694757,604.99,604.79,0.27162779]
[1743241723130,1.08694757,604.99,604.8,0.27157438]
[1743241723329,0.91429785,604.98,604.81,0.27157438]
[1743241723529,0.9142671,604.97,604.82,0.27157438]
[1743241723727,0.9142671,604.96,604.83,0.27157438]
[1743241723929,0.9142671,604.95,604.84,0.27157438]
[1743241724133,0.9142671,604.94,604.79,0.27157438]
[1743241724333,0.9142671,604.93,604.78,0.28769722]
[1743241724535,0.9142671,604.92,604.79,0.27157438]
[1743241724734,0.9142671,604.91,604.79,0.27157438]
[1743241725035,2.81457639,604.93,604.79,0.27157438]
[1743241725230,1.08694757,604.9,604.8,0.27162316]
[1743241725434,1.08694757,604.9,604.79,0.27162316]
[1743241725634,1.08694757,604.9,604.78,0.28769722]
[1743241725635,1.08694757,604.9,604.8,0.27162316]
[1743241725936,1.08694757,604.89,604.81,0.27162316]
[1743241726132,1.08694757,604.89,604.79,0.27162316]
[1743241726334,1.08694757,604.89,604.8,0.27162316]
[1743241726539,1.60260518,605.28,604.78,0.28769722]
[1743241726739,6.32064323,605.27,604.79,0.2716096]
[1743241727038,6.32064323,605.26,604.79,0.2716096]
[1743241727232,6.32072586,605.25,604.8,0.2716096]
[1743241727434,6.32072586,605.24,604.78,0.2876461]
[1743241727638,6.32072586,605.23,604.79,0.2716096]
[1743241727933,6.32072586,605.22,604.79,0.2716096]
[1743241728136,6.32072586,605.21,604.79,0.2716096]
[1743241728345,6.32072586,605.2,604.79,0.2716096]
[1743241728540,3.70196918,605.19,604.79,0.2716096]
[1743241728840,3.70196918,605.18,604.79,0.2716096]
[1743241729039,2.24039823,605.17,604.79,0.2716096]
[1743241729240,0.9132368,605.16,604.79,0.2716096]
[1743241729439,0.9132368,605.15,604.8,0.27156006]
[1743241729640,0.9132368,605.14,604.79,0.27156006]
[1743241729837,0.9132368,605.13,604.8,0.27156006]
[1743241730142,0.9132368,605.12,604.81,0.27156272]
[1743241730340,0.9132368,605.11,604.79,0.2876354]
[1743241730540,1.07889574,605.12,604.8,0.27156272]
[1743241730734,0.91294155,605.11,604.8,0.27156272]
[1743241730937,1.99183729,605.1,604.8,0.27156272]
[1743241731137,1.07889574,605.1,604.8,0.27156272]
[1743241731936,1.07889574,605.09,604.8,0.27156272]
[1743241732539,1.07889574,605.08,604.8,0.27156272]
[1743241733139,0.96695611,605.45,604.8,0.27156272]
[1743241733340,6.31733892,605.44,604.61,0.27156272]
[1743241733539,6.31733892,605.43,604.79,0.28758548]
[1743241733741,1.60260518,605.4,604.8,0.27156272]
[1743241733941,6.31733892,605.39,604.8,0.27156272]
[1743241734142,6.31733892,605.38,604.79,0.28753914]
[1743241734445,6.31733892,605.37,604.8,0.27156272]
[1743241734641,6.31733892,605.36,604.8,0.27156272]
[1743241734840,6.31733892,605.35,604.8,0.27156272]
[1743241735043,3.69991421,605.34,604.8,0.27156272]
[1743241735242,0.91324978,605.33,604.8,0.27156272]
[1743241735444,1.07821514,605.33,604.8,0.27156272]
[1743241735940,1.07821514,605.32,604.8,0.27156272]
[1743241736548,0.91334096,605.31,604.86,1.23730318]
[1743241736748,1.07821514,605.31,604.87,0.27156272]
[1743241737143,1.07821514,605.31,604.88,0.27142406]
[1743241737349,1.07821514,605.3,604.89,0.27142406]
[1743241737644,1.07821514,605.3,604.86,1.23730318]
[1743241737949,1.07821514,605.29,604.87,0.27142076]
[1743241738250,1.60260518,605.66,604.87,0.27142076]
[1743241738453,6.32158385,605.65,604.87,0.27142076]
[1743241738654,6.32158385,605.64,604.87,0.27142076]
[1743241738853,6.32158385,605.63,604.87,0.27142076]
[1743241739150,6.32158385,605.62,604.9,1.23730318]
[1743241739354,6.32158385,605.61,604.91,0.27142076]
[1743241739551,6.32158385,605.6,604.91,0.27142076]
[1743241739754,6.32158385,605.59,604.91,0.27142076]
[1743241739950,6.32158385,605.58,604.91,0.27142076]
[1743241740154,6.32158385,605.57,604.91,0.27142076]
[1743241740357,6.32158385,605.56,604.91,0.27142076]
[1743241740558,6.32158385,605.55,604.91,0.27142076]
[1743241740858,6.32158385,605.54,604.91,0.27142076]
[1743241741058,3.46589224,605.55,604.91,0.27142076]
[1743241741059,5.82621867,605.53,604.91,0.27142076]
[1743241741358,3.46589224,605.55,605.02,1.23730318]
[1743241741359,5.82621867,605.52,605.02,1.23730318]
[1743241741558,3.70270486,605.51,605.02,1.23730318]
[1743241741856,3.70270486,605.5,605.03,0.27138454]
[1743241742055,3.70270486,605.49,605.03,0.27138454]
[1743241742250,3.70270486,605.48,605.03,0.27138454]
[1743241742457,3.70270486,605.47,605.03,0.27138454]
[1743241742651,3.46589224,605.49,605.03,0.27138454]
[1743241742652,2.24085333,605.46,605.03,0.27138454]
[1743241742854,0.9136572,605.45,605.03,0.27138454]
[1743241743153,0.9136572,605.44,605.03,0.27138454]
[1743241743352,0.9136572,605.43,605.03,0.27138454]
[1743241743550,0.9136572,605.42,605.03,0.27138454]
[1743241743749,0.9136572,605.41,605.03,0.27138454]
[1743241743953,2.80540533,605.43,605.03,0.27138454]
[1743241744173,1.07900205,605.4,605.03,0.27138454]
[1743241744554,1.07900205,605.4,605.02,1.23730318]
[1743241744753,1.07900205,605.39,605.03,0.27137605]
[1743241744955,1.07900205,605.39,605.04,0.27137605]
[1743241745154,1.07900205,605.39,604.96,0.27137605]
[1743241745358,1.07900205,605.39,604.98,0.28744889]
[1743241745554,1.07900205,605.39,604.99,0.27137605]
[1743241745859,1.07900205,605.38,604.99,0.27137605]
[1743241746858,6.72686205,607.0,604.99,0.27137605]
[1743241746859,1.60260518,605.8,604.99,0.27137605]
[1743241747058,6.33584983,605.79,604.98,0.28744889]
[1743241747352,9.31276622,605.78,604.98,0.28744889]
[1743241747653,6.33588277,605.77,604.98,0.28744889]
[1743241747859,6.33588277,605.76,604.98,0.28744889]
[1743241748164,6.33588277,605.75,604.87,1.23730318]
[1743241748355,3.47217482,605.76,604.98,0.28743227]
[1743241748356,6.33588277,605.74,604.98,0.28743227]
[1743241748552,6.33588277,605.73,604.98,0.28743227]
[1743241748757,6.33588277,605.72,604.87,1.23730318]
[1743241748957,6.33594813,605.71,604.87,1.23730318]
[1743241749161,5.8405914,605.7,604.88,0.27140287]
[1743241749359,5.8405914,605.69,604.88,0.28741921]
[1743241749553,5.8405914,605.68,604.89,0.27140287]
[1743241749754,5.8405914,605.67,604.89,0.27140287]
[1743241749953,5.8405914,605.66,604.89,0.27140287]
[1743241750158,6.33595582,605.65,604.89,0.27140287]
[1743241750354,5.8405914,605.64,604.89,0.27140287]
[1743241750660,6.33596693,605.63,604.89,0.27140287]
[1743241750857,6.33596693,605.62,604.89,0.27140287]
[1743241751057,5.8405914,605.61,604.89,0.27140287]
[1743241751258,5.8405914,605.6,604.69,1.23730318]
[1743241751462,6.33596333,605.59,604.88,0.28750826]
[1743241751763,5.8405914,605.58,604.89,0.27140287]
[1743241751965,3.71182152,605.57,604.7,0.27140287]
[1743241752259,3.71554219,605.56,604.71,0.27140287]
[1743241752458,2.24638131,605.55,604.71,0.28745958]
[1743241752757,2.24638131,605.54,604.72,0.27140287]
[1743241752962,2.24638131,605.53,604.72,0.27140287]
[1743241753157,2.24638131,605.52,604.72,0.27140287]
[1743241753362,2.24638131,605.51,604.79,1.23730318]
[1743241753562,2.24638131,605.5,604.8,0.27140287]
[1743241753755,2.24638131,605.49,604.8,0.27140287]
[1743241753960,2.24638131,605.48,604.8,0.27140287]
[1743241754161,2.24638131,605.47,604.8,0.27140287]
[1743241754362,0.91847564,605.46,604.8,0.27140287]
[1743241754663,0.91847564,605.45,604.8,0.27140287]
[1743241754864,2.25267939,605.44,604.8,0.27140287]
[1743241755063,2.25267939,605.43,604.8,0.27140287]
[1743241755257,3.33417976,605.42,604.8,0.27140287]
[1743241755462,0.9185069,605.41,604.81,1.50870605]
[1743241755662,0.9185069,605.4,604.82,0.27140287]
[1743241755865,0.9185069,605.39,604.83,0.27140287]